[Event "Romanian-ch Youth Open U20 2024"]
[Site "Eforie Nord"]
[Date "2024.04.16"]
[Round "6.2"]
[White "Serban, Cristian-Stefan"]
[Black "Mazilu, Stefan Fabian"]
[Result "1/2-1/2"]
[ECO "E94"]
[WhiteElo "2282"]
[BlackElo "1994"]
[Annotator "TA"]
[PlyCount "68"]
[EventDate "2024.04.10"]
[EventType "swiss"]
[EventCountry "ROU"]
[SourceTitle "playchess.com"]
[Source "ChessBase"]
[SourceQuality "1"]
[TimeControl "5400+30"]

{[%evp 15,68,38,37,37,49,54,59,38,44,24,29,33,60,38,84,69,72,66,58,28,51,48,61,36,37,43,73,52,45,52,55,60,73,67,109,0,0,-26,-35,-11,-30,-64,0,0,0,0,0,-559,-318,-688,-503,-587,-8,-12,0]} 1. d4 {[%emt 0:02:47]} Nf6 {[%emt 0:00:59]} 2. c4 {[%emt 0:00:10]} g6 {[%emt 0:00:06]} 3. Nc3 {[%emt 0:00:07]} Bg7 {[%emt 0:00:07]} 4. e4 {[%emt 0:00:06]} d6 {[%emt 0:00:04]} 5. Nf3 {[%emt 0:00:09]} O-O {[%emt 0:00:13]} 6. Be2 {[%emt 0:00:09]} e5 {[%emt 0:00:08]} 7. O-O {[%emt 0:00:08]} Bg4 {[%emt 0:00:24]} 8. d5 {[%emt 0:06:39]} a5 {[%emt 0:00:08]} 9. h3 {[%emt 0:01:44]} Bxf3 {[%emt 0:00:16]} 10. Bxf3 {[%emt 0:00:06]} Na6 {[%emt 0:00:49]} 11. Be3 {[%emt 0:03:43] White is slightly better.} Nd7 {[%emt 0:08:00]} 12. Be2 {[%emt 0:01:18]} Nac5 {[%emt 0:02:42]} 13. Qc2 {[%emt 0:10:36]} Qe7 {[%emt 0:10:17]} 14. Rae1 {[%emt 0:04:53]} b6 {[%emt 0:15:12]} (14... f5 $14) 15. b3 {[%emt 0:00:39]} f5 {[%emt 0:03:31]} 16. exf5 {[%emt 0:00:47]} gxf5 {[%emt 0:00:30]} 17. f4 {[%emt 0:00:22]} exf4 {[%emt 0:13:33]} 18. Bxf4 {[%emt 0:00:12]} Ne5 {[%emt 0:02:24][%cal Bd7e5,Be5g6,Bg6h4][%mdl 32]} 19. Bd2 {[%emt 0:12:16][%cal Oe2d3]} Qd7 {[%emt 0:03:57]} 20. a3 {[%emt 0:03:04]} a4 {[%emt 0:10:11]} 21. b4 {[%emt 0:00:27]} Nb3 {[%emt 0:00:07]} 22. Nb5 {[%emt 0:02:33]} Nxd2 {[%emt 0:07:36]} 23. Qxd2 {[%emt 0:00:11]} Ng6 {[%emt 0:01:48]} 24. Bd3 {[%emt 0:03:19]} Rf7 {[%emt 0:03:53]} 25. Qc2 {[%emt 0:02:22] White has more active pieces.} ({Better is} 25. Re6 $16) 25... Raf8 $11 {[%emt 0:00:54]} 26. Rf2 {[%emt 0:06:34][%cal Oe1f1]} Be5 {[%emt 0:01:36]} 27. Ref1 {[%emt 0:04:45]} Nh4 {[%emt 0:01:03]} 28. Qd1 {[%emt 0:00:04][%cal Od1h5]} Rg7 {[%emt 0:01:32]} (28... Qe7 $15 29. Qh5 f4) 29. Qh5 {[%emt 0:03:43]} Qe7 {[%emt 0:01:22] Threatens to win with ...Rg3.} (29... Bg3 30. Re2 $16) 30. Kh1 {[%emt 0:02:30][%cal Rd3f5]} Kh8 {[%emt 0:01:10]} 31. Ra2 $2 {[%emt 0:10:10][%mdl 8192]} (31. g4 $11) 31... Rfg8 {[%emt 0:04:01]} 32. Rff2 {[%emt 0:05:10]} (32. Na7 Nxg2 (32... Rxg2 33. Rxg2 Rxg2 34. Bxf5 $19) 33. Nc6) 32... f4 {[%emt 0:02:43][%cal Of4f3] ...f3! would now be deadly.} 33. Nxc7 {[%emt 0:02:02] [#]} f3 $2 {[%emt 0:01:02]} (33... Rg3 $1 $19 {[%cal Rg3d3]} 34. Be4 f3 (34... Qxc7 35. Qxh4 Qg7 36. Rf1 $15) 35. Bxf3 Nxf3 36. Rxf3 Rxf3 (36... Qxc7 $2 {perishes.} 37. Rf7 $18) 37. Qxf3 Qxc7) 34. g4 $1 {[%emt 0:01:01]} Bg3 {[%emt 0:05:12] Weighted Error Value: White=0.64/Black=0.63.  Loses game:     	White=1     	---        Mistake:       	White=2     	Black=2      Inaccurate:     	White=3     	Black=4      OK:         	White=8     	Black=9      Best:        	---       	Black=1      Strong:       	White=1     	---} (34... Rg5 $5 35. Qh6 $8 (35. Qxh4 $2 {loses.} Rxg4 36. Qxg4 Rxg4 $19) 35... R5g6 36. Bxg6 Rxg6 $11) 1/2-1/2

[Event "Romanian-ch Youth Open U20 2024"]
[Site "Eforie Nord"]
[Date "2024.04.16"]
[Round "6.3"]
[White "Barbu, Simon-Alexandru"]
[Black "Antonica, Dragos-Andrei"]
[Result "0-1"]
[ECO "B23"]
[WhiteElo "1954"]
[BlackElo "2317"]
[Annotator "TA"]
[PlyCount "60"]
[EventDate "2024.04.10"]
[EventType "swiss"]
[EventCountry "ROU"]
[SourceTitle "playchess.com"]
[Source "ChessBase"]
[SourceQuality "1"]
[TimeControl "5400+30"]

{[%evp 9,60,18,20,7,27,-29,-12,-31,-24,-24,40,50,82,74,80,61,114,51,71,32,72,-29,49,-45,-44,-74,-77,-85,-92,-87,-63,-87,-90,-89,-81,-76,-62,-76,-59,-83,-75,-93,-57,-56,-58,-70,-41,-50,-46,-122,-118,-207,-200]} 1. e4 {[%emt 0:00:05]} c5 {[%emt 0:01:02]} 2. Nc3 {[%emt 0:00:41]} e6 {[%emt 0:00:21]} 3. f4 {[%emt 0:00:06]} Nc6 {[%emt 0:00:05]} 4. Nf3 {[%emt 0:00:09]} Nh6 {[%emt 0:00:12]} 5. Bb5 {[%emt 0:04:53]} Nd4 {[%emt 0:03:22]} 6. O-O {[%emt 0:03:14]} f5 {[%emt 0:16:00]} 7. d3 {[%emt 0:06:51]} ({White should try} 7. Bd3) 7... a6 $11 {[%emt 0:07:09]} 8. Bc4 {[%emt 0:07:59] The position is equal.} b5 {[%emt 0:02:06]} 9. Bb3 {[%emt 0:02:06]} Be7 {[%emt 0:06:59]} (9... Bb7 $11) 10. Nxd4 $14 {[%emt 0:12:21]} cxd4 {[%emt 0:00:07]} 11. Qh5+ {[%emt 0:57:35]} Nf7 {[%emt 0:06:48]} 12. Ne2 {[%emt 0:00:00]} g6 {[%emt 0:01:53] [#]} (12... a5 $14) 13. Qf3 {[%emt 0:00:00]} (13. Qh3 $1 $16) 13... Qb6 {[%emt 0:02:52] [#]} 14. c3 $1 {[%emt 0:00:00]} Bb7 {[%emt 0:21:16]} (14... dxc3+ 15. Be3) 15. cxd4 {[%emt 0:00:00]} (15. Nxd4 $16 {Threatens to win with Qe2.} Bc5 16. Be3) 15... Nd6 {[%emt 0:02:48]} (15... fxe4 $1 $11 16. dxe4 Nd6) 16. Bc2 {[%emt 0:00:00]} (16. Be3 $14 fxe4 17. Qh3 exd3 18. d5) 16... Qc6 $36 {[%emt 0:04:46][%csl LRc2,LRe4][%mdl 2048] Black has some pressure.} 17. Bb1 {[%emt 0:00:00][%cal Od4d5]} fxe4 {[%emt 0:02:14]} 18. dxe4 {[%emt 0:00:00]} Nxe4 {[%emt 0:00:10][%cal Bd6e4,Be4f6,Bf6d5][%mdl 32]} 19. Be3 {[%emt 0:00:00]} Nf6 {[%emt 0:01:19]} 20. Qxc6 {[%emt 0:00:00]} Bxc6 {[%emt 0:00:01]} 21. a3 {[%emt 0:00:15]} Nd5 {[%emt 0:02:23]} 22. Bd2 {[%emt 0:00:01]} Bf6 {[%emt 0:03:18]} 23. Bd3 {[%emt 0:00:47]} Ne7 {[%emt 0:02:15]} 24. Bc3 {[%emt 0:01:09]} Kf7 {[%emt 0:01:51]} 25. Ng3 {[%emt 0:02:01]} Nf5 {[%emt 0:04:25]} 26. Nxf5 {[%emt 0:00:01]} gxf5 {[%emt 0:00:28]} 27. Rad1 {[%emt 0:00:19]} Rhg8 {[%emt 0:01:02]} 28. Rf2 {[%emt 0:00:09]} Bd5 {[%emt 0:01:30]} 29. Bc2 {[%emt 0:02:01]} (29. Be2 $15) 29... a5 $17 {[%emt 0:00:53] Black is much more active.} 30. Bd3 {[%emt 0:00:31] [#]} (30. Kf1 $17) 30... b4 $1 {[%emt 0:02:02][%mdl 512] Weighted Error Value: White=0.31/Black=0.19 (very precise) .  Mistake:       	White=6     	Black=3      Inaccurate:     	White=2     	Black=4      OK:         	White=6     	Black=8      Best:        	White=2     	Black=2} 0-1

[Event "Romanian-ch Youth Open U20 2024"]
[Site "Eforie Nord"]
[Date "2024.04.16"]
[Round "6.4"]
[White "Coca, Cristi-Iulian"]
[Black "Tudoroiu, Razvan-Catalin"]
[Result "1-0"]
[ECO "B22"]
[WhiteElo "2235"]
[BlackElo "2004"]
[Annotator "TA"]
[PlyCount "33"]
[EventDate "2024.04.10"]
[EventType "swiss"]
[EventCountry "ROU"]
[SourceTitle "playchess.com"]
[Source "ChessBase"]
[SourceQuality "1"]
[TimeControl "5400+30"]

{[%evp 9,33,14,6,9,37,42,79,68,111,109,122,111,107,110,145,137,129,125,254,145,306,299,268,336,527,569]} 1. e4 {[%emt 0:01:05]} c5 {[%emt 0:00:07]} 2. Nf3 {[%emt 0:00:12]} Nc6 {[%emt 0:00:11]} 3. c3 {[%emt 0:00:03]} d5 {[%emt 0:00:08]} 4. exd5 {[%emt 0:00:03]} Qxd5 {[%emt 0:00:08]} 5. Na3 {[%emt 0:00:01]} Bg4 {[%emt 0:00:07]} 6. Be2 {[%emt 0:00:05]} e6 {[%emt 0:00:36][%cal Be7e6,Be6f5][%mdl 32]} 7. Qa4 {[%emt 0:08:10]} Bf5 {[%emt 0:23:16]} 8. Nc4 {[%emt 0:02:41] Hoping for Nb6. White is better.} Rb8 {[%emt 0:02:40] [#] aiming for ...b5.} 9. Ne3 {[%emt 0:08:40]} Qd7 {[%emt 0:00:46]} 10. Nxf5 {[%emt 0:00:29]} exf5 {[%emt 0:00:05]} 11. O-O $36 {[%emt 0:01:13][%mdl 2048] Black is under strong pressure.} Bd6 {[%emt 0:07:48]} 12. d4 {[%emt 0:03:36]} cxd4 {[%emt 0:05:23]} 13. Nxd4 {[%emt 0:01:14] Strongly threatening Rd1.} Nge7 {[%emt 0:35:28] [#]} (13... Nf6 $16 {might work better.}) 14. Nb5 {[%emt 0:18:41]} ({Only move:} 14. Rd1 $1 $18 Nc8 15. Nxc6 bxc6 16. Bf3) 14... Rd8 $2 {[%emt 0:03:18]} (14... Nc8 $16 15. Nxd6+ Nxd6) 15. Rd1 $18 {[%emt 0:01:53]} ({Not} 15. Nxa7 Ra8 16. Bb5 O-O $17 (16... Rxa7 17. Qxa7 Nxa7 18. Bxd7+ Kxd7 19. Be3 $11)) 15... Nc8 {[%emt 0:00:56]} 16. Bg5 {[%emt 0:08:57] Against Qe7} N6e7 {[%emt 0:04:18]} (16... O-O {was called for.} 17. Bxd8 Qxd8 18. Nxd6 Nxd6) 17. Bf4 {[%emt 0:08:23] Black got outplayed after the opening.   Weighted Error Value: White=0.10 (very precise) /Black=0.59.  Loses game:     	---       	Black=1      Mistake:       	White=1     	Black=2      Inaccurate:     	---       	Black=4      OK:         	White=7     	Black=3      Best:        	White=1     	---} 1-0

[Event "Romanian-ch Youth Open U20 2024"]
[Site "Eforie Nord"]
[Date "2024.04.17"]
[Round "7.1"]
[White "Tudor, Henry Edward"]
[Black "Mazilu, Stefan Fabian"]
[Result "1-0"]
[ECO "A11"]
[WhiteElo "2279"]
[BlackElo "1994"]
[Annotator "TA"]
[PlyCount "53"]
[EventDate "2024.04.10"]
[EventType "swiss"]
[EventCountry "ROU"]
[SourceTitle "playchess.com"]
[Source "ChessBase"]
[SourceQuality "1"]
[TimeControl "5400+30"]

{[%evp 13,53,24,26,24,27,27,28,22,41,0,10,6,0,0,22,0,4,9,18,21,14,19,66,44,29,13,11,18,19,30,47,35,161,159,155,159,147,140,140,142,437,432]} 1. Nf3 {[%emt 0:02:38]} Nf6 {[%emt 0:00:48]} 2. b3 {[%emt 0:00:03]} g6 {[%emt 0:08:51]} 3. Bb2 {[%emt 0:00:07]} Bg7 {[%emt 0:00:08]} 4. g3 {[%emt 0:00:11]} d5 {[%emt 0:02:23]} 5. c4 {[%emt 0:07:54]} c6 {[%emt 0:09:50]} 6. Bg2 {[%emt 0:02:54]} O-O {[%emt 0:00:30]} 7. O-O {[%emt 0:00:56]} b6 {[%emt 0:15:03]} 8. d4 {[%emt 0:28:04]} Bb7 {[%emt 0:21:15]} 9. Nc3 {[%emt 0:02:54]} Nbd7 {[%emt 0:01:23]} 10. Qc2 {[%emt 0:04:51] White has an edge.} Qc7 {[%emt 0:06:05]} 11. e4 {[%emt 0:17:19]} dxe4 {[%emt 0:02:50]} 12. Nxe4 {[%emt 0:00:03]} Nxe4 {[%emt 0:01:36]} 13. Qxe4 {[%emt 0:00:01]} e6 {[%emt 0:00:11]} 14. Qe2 {[%emt 0:07:50]} c5 {[%emt 0:02:12]} 15. Rad1 {[%emt 0:00:02]} Rfe8 {[%emt 0:04:52]} (15... Rad8 {seems wilder.} 16. dxc5 Nxc5 17. Bxg7 Kxg7 18. Qe3 Rxd1 19. Rxd1 Rd8) 16. Rfe1 {[%emt 0:04:48]} Rad8 {[%emt 0:13:10]} 17. d5 {[%emt 0:00:18]} Nf8 {[%emt 0:00:55]} (17... Bxb2 $11 18. Qxb2 exd5) 18. Bxg7 {[%emt 0:07:58]} Kxg7 {[%emt 0:00:08]} 19. Qe5+ {[%emt 0:00:01]} Qxe5 {[%emt 0:00:23]} 20. Nxe5 {[%emt 0:00:01][%cal Bf3e5,Be5c4,Bc4d6][%mdl 32]} exd5 {[%emt 0:01:46]} 21. cxd5 {[%emt 0:02:31]} b5 {[%emt 0:01:46]} 22. Re3 {[%emt 0:02:21]} Rd6 {[%emt 0:02:55] [#]} (22... Ba8 $14) 23. Nc4 $1 $18 {[%emt 0:02:18][%mdl 512]} Rdd8 {[%emt 0:01:52] [#]} 24. Rxe8 $1 {[%emt 0:00:39]} Rxe8 {[%emt 0:00:07]} 25. Nd6 {[%emt 0:00:01][%csl LRb5,LRb7,LRe8]} Rb8 {[%emt 0:00:17]} 26. Re1 {[%emt 0:02:12] White has more active pieces.} Kf6 {[%emt 0:02:14][%mdl 8192] Dodges Re7} (26... Ba6 $16 {was necessary.} 27. Re7 Rd8 28. Ne8+ (28. Nxf7 Rd7 $16) (28. Rxf7+ Kg8 $16) 28... Kg8 29. Rxa7 Bc8) 27. h4 {[%emt 0:00:03] Weighted Error Value: White=0.07 (flawless) /Black=0.38.  Loses game:     	---       	Black=1      Mistake:       	---       	Black=2      Inaccurate:     	White=1     	---        OK:         	White=6     	Black=5      Best:        	---       	Black=1      Strong:       	White=1     	---        Brilliant:      	White=1     	---} (27. Nxb5 Bxd5 28. Nc7 (28. Nxa7 Bxg2 29. Kxg2 Ra8 $11) 28... Be6 $14) 1-0

[Event "Romanian-ch Youth Open U20 2024"]
[Site "Eforie Nord"]
[Date "2024.04.17"]
[Round "7.2"]
[White "Antonica, Dragos-Andrei"]
[Black "Prisacaru, Stefan-Emilian"]
[Result "1-0"]
[ECO "E06"]
[WhiteElo "2317"]
[BlackElo "2286"]
[Annotator "TA"]
[PlyCount "97"]
[EventDate "2024.04.10"]
[EventType "swiss"]
[EventCountry "ROU"]
[SourceTitle "playchess.com"]
[Source "ChessBase"]
[SourceQuality "1"]
[TimeControl "5400+30"]

{[%evp 14,97,39,16,47,36,55,54,49,44,89,87,93,95,93,90,122,115,122,118,115,92,100,102,222,137,160,171,400,397,537,266,501,337,326,328,333,335,306,213,432,437,446,450,583,599,563,576,593,583,666,666,717,603,595,584,751,745,713,504,753,750,856,734,810,803,836,764,871,764,961,939,5501,5035,29982,29983,29988,29988,29989,29986,29986,29987,29987,29988,29988,29987]} 1. c4 {[%emt 0:02:16]} c5 {[%emt 0:00:10]} 2. g3 {[%emt 0:00:11]} Nf6 {[%emt 0:00:17]} 3. Bg2 {[%emt 0:00:06]} e6 {[%emt 0:00:13]} 4. Nf3 {[%emt 0:00:35]} Be7 {[%emt 0:01:39]} 5. Nc3 {[%emt 0:00:14]} O-O {[%emt 0:08:49]} 6. O-O {[%emt 0:02:29]} d5 {[%emt 0:20:45]} 7. cxd5 {[%emt 0:01:23]} Nxd5 {[%emt 0:00:07]} 8. d4 {[%emt 0:05:50]} b6 {[%emt 0:08:48]} 9. dxc5 {[%emt 0:08:45]} Bxc5 {[%emt 0:05:59]} 10. Nxd5 {[%emt 0:02:01]} (10. Ng5 {is more complex.} Bb7 11. Qc2 g6 12. Nge4) 10... exd5 {[%emt 0:00:15] White is slightly better.} 11. a3 {[%emt 0:04:07]} Be7 {[%emt 0:03:42] Inhibits Bg5.} 12. Nd4 {[%emt 0:08:19]} Bb7 {[%emt 0:01:36]} 13. Bf4 {[%emt 0:02:39]} Qd7 {[%emt 0:12:21]} 14. Rc1 {[%emt 0:03:34]} Na6 {[%emt 0:03:44][%cal Bb8a6,Ba6c7,Bc7e6][%mdl 32] Wards off Rc7} 15. b4 {[%emt 0:01:51]} Rac8 {[%emt 0:01:57] [#]} 16. Qd3 $1 {[%emt 0:00:18]} Nc7 {[%emt 0:06:02] Prevents Qb5} 17. Nf5 {[%emt 0:09:01] White has more active pieces.} Ne6 {[%emt 0:08:10]} 18. Be5 {[%emt 0:00:21]} Rcd8 {[%emt 0:08:58]} (18... Rfe8 $16) 19. Bh3 {[%emt 0:17:47][%cal Of5g7] Strongly threatening Nxg7!} d4 {[%emt 0:02:58]} 20. Bxg7 {[%emt 0:04:59] [#] Be5 is the strong threat.} (20. Nxg7 $2 Qd5 21. e4 Qxe5 $19) 20... Bg5 $2 {[%emt 0:02:26]} (20... Rfe8) 21. Bxf8 $18 {[%emt 0:02:34]} Bxc1 {[%emt 0:01:15]} 22. Be7 {[%emt 0:03:38]} (22. Bd6 $142 Bg5 23. f4) 22... Qd5 $2 {[%emt 0:00:35]} (22... Qc6 23. f3 Rd7) 23. e4 {[%emt 0:05:34]} (23. Rxc1 $2 Qh1#) 23... dxe3 {[%emt 0:00:33]} 24. Qxd5 {[%emt 0:01:24]} Rxd5 {[%emt 0:00:00]} 25. Rxc1 {[%emt 0:03:51]} e2 {[%emt 0:00:01]} 26. Ne3 {[%emt 0:03:39] Prevents Rd1+} Nd4 $2 {[%emt 0:00:58]} (26... Rd7) 27. Bg2 {[%emt 0:01:47]} ({Less strong is} 27. Nxd5 Nf3+ 28. Kg2 Bxd5 $18) 27... Rd7 {[%emt 0:00:55]} 28. Bf6 {[%emt 0:01:20]} Nc2 {[%emt 0:00:37] ...Nxe3 would now be deadly.} 29. Bxb7 {[%emt 0:00:40]} (29. Rxc2 $2 {too greedy.} e1=Q+ (29... e1=R+ $2 30. Nf1 $18) 30. Nf1 Rd6 31. Bxb7 Rxf6 $19) (29. Nxc2 $2 {is the wrong capture.} Rd1+ 30. Ne1 Rxc1 $19) 29... e1=Q+ {[%emt 0:00:30]} 30. Rxe1 {[%emt 0:00:01]} Nxe1 {[%emt 0:00:04]} 31. Be4 {[%emt 0:00:15]} Nd3 {[%emt 0:00:59]} 32. Nd5 {[%emt 0:00:42]} Nc1 {[%emt 0:00:33]} 33. Kf1 {[%emt 0:00:39]} Rd6 {[%emt 0:00:25]} 34. f3 {[%emt 0:00:52]} a5 {[%emt 0:00:27]} 35. Be5 {[%emt 0:01:27]} Re6 {[%emt 0:00:25]} 36. Bc3 {[%emt 0:00:25]} a4 {[%emt 0:00:41]} 37. g4 {[%emt 0:00:12]} Nb3 {[%emt 0:00:23]} 38. Kf2 {[%emt 0:00:21]} Kf8 {[%emt 0:00:13]} 39. h4 {[%emt 0:00:21][%cal Bh2h4,Bh4h5,Bh5h6,Bh6h7][%mdl 32]} h6 {[%emt 0:00:42]} 40. Ke3 {[%emt 0:00:14]} Rc6 {[%emt 0:00:35]} 41. f4 {[%emt 0:00:42][%cal Bf3f4,Bf4g5][%mdl 32]} Rd6 {[%emt 0:00:35]} 42. g5 {[%emt 0:00:18] And now Bf6 would win.} hxg5 {[%emt 0:00:23]} 43. fxg5 {[%emt 0:00:15] Threatening mate with h5.} Nc1 {[%emt 0:00:24]} 44. h5 {[%emt 0:00:18] White mates.} Re6 {[%emt 0:00:49]} 45. h6 {[%emt 0:00:18]} Ne2 {[%emt 0:00:28]} 46. h7 {[%emt 0:00:12][%cal Rh7h8]} Rxe4+ {[%emt 0:00:15]} 47. Kxe4 {[%emt 0:00:05][%cal Rh7h8]} Nxc3+ {[%emt 0:00:04]} 48. Nxc3 {[%emt 0:00:03]} Kg7 {[%emt 0:00:04]} 49. Nxa4 {[%emt 0:00:06] Weighted Error Value: White=0.35/Black=0.75.  Mistake:       	White=1     	Black=4      Inaccurate:     	White=3     	Black=3      OK:         	White=13    	Black=7      Best:        	White=4     	Black=1      Strong:       	White=1     	---} 1-0

[Event "Romanian-ch Youth Open U20 2024"]
[Site "Eforie Nord"]
[Date "2024.04.17"]
[Round "7.3"]
[White "Antal, Hunor-Zoltan"]
[Black "Serban, Cristian-Stefan"]
[Result "0-1"]
[ECO "B15"]
[WhiteElo "2301"]
[BlackElo "2282"]
[Annotator "TA"]
[PlyCount "68"]
[EventDate "2024.04.10"]
[EventType "swiss"]
[EventCountry "ROU"]
[SourceTitle "playchess.com"]
[Source "ChessBase"]
[SourceQuality "1"]
[TimeControl "5400+30"]

{[%evp 10,68,33,17,22,8,8,8,50,20,17,0,8,10,14,-24,-1,-20,-10,-31,-18,-16,0,-16,0,0,0,0,0,0,7,0,0,-41,-36,-47,-43,-45,-37,-155,-164,-209,-164,-180,-190,-292,-293,-284,-104,-296,-281,-491,-486,-797,-767,-1270,-1209,-29994,-29995,-29995,-29996]} 1. e4 {[%emt 0:00:30]} c6 {[%emt 0:00:22]} 2. d4 {[%emt 0:00:26]} d5 {[%emt 0:00:11]} 3. Nc3 {[%emt 0:00:28]} dxe4 {[%emt 0:00:19]} 4. Nxe4 {[%emt 0:00:09]} Nf6 {[%emt 0:00:05]} 5. Nxf6+ {[%emt 0:00:43]} exf6 {[%emt 0:00:12]} 6. Bc4 {[%emt 0:00:40]} Na6 {[%emt 0:00:09]} 7. Ne2 {[%emt 0:02:11]} Bd6 {[%emt 0:00:33]} 8. O-O {[%emt 0:00:16]} O-O {[%emt 0:05:20] The position is equal.} 9. Ng3 {[%emt 0:00:53]} Re8 {[%emt 0:09:14]} 10. c3 {[%emt 0:00:28]} Be6 {[%emt 0:01:24]} 11. Bd3 {[%emt 0:01:04]} Nc7 {[%emt 0:05:24]} 12. Bd2 {[%emt 0:34:49]} g6 {[%emt 0:00:31]} 13. Re1 {[%emt 0:06:19]} f5 {[%emt 0:02:00]} 14. Qc1 {[%emt 0:04:39]} b5 {[%emt 0:09:49]} 15. Bg5 {[%emt 0:11:13]} Be7 {[%emt 0:02:23]} 16. Bxe7 {[%emt 0:00:41]} Qxe7 {[%emt 0:01:03]} 17. Qh6 {[%emt 0:08:11][%cal Od3f5]} Qf8 {[%emt 0:00:25]} 18. Qg5 {[%emt 0:00:26][%cal Rg3f5]} h6 {[%emt 0:04:05]} 19. Qd2 {[%emt 0:00:15]} h5 {[%emt 0:05:06]} 20. b3 {[%emt 0:06:16]} Rad8 {[%emt 0:08:09]} 21. Re5 {[%emt 0:02:43] [#]} b4 $1 {[%emt 0:07:10]} 22. Rae1 {[%emt 0:01:43]} (22. h3 bxc3) 22... bxc3 {[%emt 0:04:13]} 23. Qxc3 {[%emt 0:00:01]} Qd6 {[%emt 0:01:48]} 24. Rc5 {[%emt 0:13:07] [#]} (24. h3 $15) 24... Bd5 $1 $17 {[%emt 0:00:33]} (24... Qxd4 25. Qxd4 Rxd4 26. Rxc6 Rxd3 27. Rxc7) 25. Re5 {[%emt 0:00:47]} h4 {[%emt 0:06:25]} 26. Nf1 {[%emt 0:01:26] [#]} h3 $1 {[%emt 0:05:30]} 27. g3 {[%emt 0:00:39]} (27. Ne3 $142) 27... Ne6 $19 {[%emt 0:00:25]} 28. Ra5 {[%emt 0:01:29]} f6 $2 {[%emt 0:00:06]} (28... Bg2 $19 29. f4 Nxd4) 29. Rexd5 {[%emt 0:01:15] Now White is beyond hope.} cxd5 {[%emt 0:00:09]} 30. Ne3 $2 {[%emt 0:00:46]} (30. Ra6 {is a better defense.} Qd7 31. Qa5 Nxd4 32. Rxf6 Nf3+ 33. Kh1) 30... Rc8 {[%emt 0:00:19]} 31. Qa1 {[%emt 0:00:55]} (31. Qe1 $142 Qc6 (31... Nxd4 $2 32. Qd1 $19) 32. Bb5) 31... Qc7 {[%emt 0:01:29]} 32. Rc5 {[%emt 0:00:31]} Nxc5 {[%emt 0:00:48]} 33. Nxd5 {[%emt 0:00:01]} Nxd3 {[%emt 0:00:21]} 34. Nxc7 {[%emt 0:00:04]} Rxc7 {[%emt 0:00:28] Weighted Error Value: White=0.83/Black=0.13 (very precise) .  Loses game:     	White=1     	---        Missed win:     	---       	Black=1      Mistake:       	White=4     	---        Inaccurate:     	White=4     	Black=1      OK:         	White=7     	Black=12     Best:        	---       	Black=1      Strong:       	---       	Black=1} 0-1